fUSD/lending_fUSD_20240628
["ID","MTS","AMOUNT","RATE_DAILY","PERIOD"]
[330577695,1719581537029,-693.54,0.00022191,3]
[330577696,1719581537041,-500.0,0.00022191,3]
[330577697,1719581537054,-1449.29,0.00022191,3]
[330577698,1719581537066,-500.0,0.00022191,3]
[330577699,1719581537078,-1102.19,0.00022191,3]
[330577700,1719581537092,-500.0,0.00022191,3]
[330577701,1719581537104,-1430.68,0.00022191,3]
[330577702,1719581537117,-2848.33,0.00022191,3]
[330577703,1719581537130,-1019.91,0.00022191,3]
[330577704,1719581537142,-500.0,0.00022191,3]
[330577705,1719581537155,-1181.56,0.00022191,3]
[330577706,1719581537167,-1282.69,0.00022191,3]
[330577707,1719581537179,-500.0,0.00022191,3]
[330577708,1719581537191,-500.0,0.00022191,3]
[330577709,1719581537204,-1785.99,0.00022191,3]
[330577710,1719581537215,-500.0,0.00022191,3]
[330577711,1719581537227,-4271.25,0.00022191,3]
[330577712,1719581537240,-5000.33,0.00022191,3]
[330577713,1719581537252,-767.84,0.00022191,3]
[330577714,1719581538195,-2193.02,0.00022191,3]
[330577715,1719581538231,-652.49,0.00022191,3]
[330577716,1719581538257,-3503.06,0.00022191,3]
[330577717,1719581538267,-500.0,0.00022191,3]
[330577718,1719581538276,-500.0,0.00022191,3]
[330577719,1719581538286,-500.0,0.00022191,3]
[330577720,1719581538296,-500.0,0.00022191,3]
[330577721,1719581538305,-500.0,0.00022191,3]
[330577722,1719581538315,-500.0,0.00022191,3]
[330577723,1719581538325,-1274.48,0.00022191,3]
[330577724,1719581538334,-500.0,0.00022191,3]
[330577725,1719581538345,-1581.17,0.00022191,3]
[330577726,1719581538354,-1618.75,0.00022191,3]
[330577727,1719581538364,-996.41,0.00022191,3]
[330577728,1719581538373,-1841.29,0.00022191,3]
[330577729,1719581538384,-500.0,0.00022191,3]
[330577730,1719581538393,-500.0,0.00022191,3]
[330577731,1719581538404,-500.0,0.00022191,3]
[330577732,1719581538414,-500.0,0.00022191,3]
[330577733,1719581538423,-697.65,0.00022191,3]
[330577734,1719581538438,-588.98,0.00022191,3]
[330577735,1719581538448,-3537.29,0.00022191,3]
[330577736,1719581538457,-500.0,0.00022191,3]
[330577737,1719581538467,-500.0,0.00022191,3]
[330577738,1719581538478,-3666.39,0.00022191,3]
[330577739,1719581538489,-1692.25,0.00022191,3]
[330577740,1719581538498,-7652.4,0.00022191,3]
[330577741,1719581538510,-1245.71,0.00022191,3]
[330577742,1719581538519,-727.75,0.00022191,3]
[330577743,1719581538530,-684.37,0.00022191,3]
[330577744,1719581538539,-500.0,0.00022191,3]
[330577745,1719581538549,-527.84,0.00022191,3]
[330577746,1719581538559,-760.87,0.00022191,3]
[330577747,1719581538569,-500.0,0.00022191,3]
[330577748,1719581538579,-1216.62,0.00022191,3]
[330577749,1719581538591,-792.38,0.00022191,3]
[330577750,1719581538600,-1797.28,0.00022191,3]
[330577751,1719581538609,-500.0,0.00022191,3]
[330577752,1719581538618,-541.45,0.00022191,3]
[330577753,1719581538632,-500.0,0.00022191,3]
[330577754,1719581538641,-277.05788899,0.00022191,3]
[330577755,1719581538650,-6246.5,0.00022191,3]
[330577756,1719581538661,-500.0,0.00022191,3]
[330577757,1719581538672,-500.0,0.00022191,3]
[330577758,1719581538682,-500.0,0.00022191,3]
[330577759,1719581538692,-1194.1,0.00022191,3]
[330577760,1719581538702,-949.96,0.00022191,3]
[330577761,1719581538712,-2742.28,0.00022191,3]
[330577762,1719581538722,-5615.75,0.00022191,3]
[330577763,1719581538732,-2195.07,0.00022191,3]
[330577764,1719581538742,-500.0,0.00022191,3]
[330577765,1719581538751,-2088.38,0.00022191,3]
[330577766,1719581538761,-4369.89,0.00022191,3]
[330577767,1719581538771,-1879.2,0.00022191,3]
[330577768,1719581538780,-500.0,0.00022191,3]
[330577769,1719581538790,-3608.45,0.00022191,3]
[330577770,1719581538800,-500.0,0.00022191,3]
[330577771,1719581538810,-832.85,0.00022191,3]
[330577772,1719581538819,-5733.59,0.00022191,3]
[330577773,1719581538828,-1432.87,0.00022191,3]
[330577774,1719581538838,-1129.35,0.00022191,3]
[330577775,1719581538848,-278.1476437,0.00022191,3]
[330577776,1719581538857,-1436.46,0.00022191,3]
[330577777,1719581538866,-1538.17,0.00022191,3]
[330577778,1719581538875,-1292.24,0.00022191,3]
[330577779,1719581538886,-4106.02,0.00022191,3]
[330577780,1719581538896,-1438.55,0.00022191,3]
[330577781,1719581538906,-500.0,0.00022191,3]
[330577782,1719581538916,-500.0,0.00022191,3]
[330577783,1719581538926,-616.22428788,0.00022191,3]
[330577784,1719581538936,-3578.49,0.00022191,3]
[330577785,1719581538945,-500.0,0.00022191,3]
[330577786,1719581538955,-2567.92,0.00022191,3]
[330577787,1719581538965,-936.48,0.00022191,3]
[330577788,1719581538975,-2949.05,0.00022191,3]
[330577789,1719581538985,-602.03,0.00022191,3]
[330577790,1719581538995,-500.0,0.00022191,3]
[330577791,1719581539005,-1391.57,0.00022191,3]
[330577792,1719581539015,-500.0,0.00022191,3]
[330577793,1719581539025,-500.0,0.00022191,3]
[330577794,1719581539034,-6037.16,0.00022191,3]
[330577795,1719581539044,-521.65,0.00022191,3]
[330577796,1719581539054,-1345.72,0.00022191,3]
[330577797,1719581539064,-1172.73,0.00022191,3]
[330577798,1719581539074,-3090.23,0.00022191,3]
[330577799,1719581539083,-653.49,0.00022191,3]
[330577800,1719581539093,-518.74,0.00022191,3]
[330577801,1719581539103,-2152.58,0.00022191,3]
[330577802,1719581539113,-1191.41,0.00022191,3]
[330577803,1719581539124,-2094.28,0.00022191,3]
[330577804,1719581539134,-500.0,0.00022191,3]
[330577805,1719581539148,-899.61,0.00022191,3]
[330577806,1719581539158,-500.0,0.00022191,3]
[330577807,1719581539168,-7086.03,0.00022191,3]
[330577808,1719581539178,-803.71,0.00022191,3]
[330577809,1719581539188,-2168.12,0.00022191,3]
[330577810,1719581539197,-500.0,0.00022191,3]
[330577811,1719581539207,-10699.08,0.00022191,3]
[330577812,1719581539217,-500.0,0.00022191,3]
[330577813,1719581539226,-1834.2,0.00022191,3]
[330577814,1719581539236,-4714.4,0.00022191,3]
[330577815,1719581539245,-4219.59,0.00022191,3]
[330577816,1719581539255,-1504.71,0.00022191,3]
[330577817,1719581539267,-1158.28,0.00022191,3]
[330577818,1719581539277,-1919.85,0.00022191,3]
[330577819,1719581539286,-1215.12,0.00022191,3]
[330577820,1719581539296,-500.0,0.00022191,3]
[330577821,1719581539306,-500.0,0.00022191,3]
[330577822,1719581539316,-4704.3,0.00022191,3]
[330577823,1719581539325,-500.0,0.00022191,3]
[330577824,1719581539334,-500.0,0.00022191,3]
[330577825,1719581539345,-2086.55,0.00022191,3]
[330577826,1719581539354,-500.0,0.00022191,3]
[330577827,1719581539364,-2978.02,0.00022191,3]
[330577828,1719581539373,-2920.68,0.00022191,3]
[330577829,1719581539383,-1218.92,0.00022191,3]
[330577830,1719581539393,-647.51,0.00022191,3]
[330577831,1719581539403,-922.33,0.00022191,3]
[330577832,1719581539413,-500.0,0.00022191,3]
[330577833,1719581539423,-662.35,0.00022191,3]
[330577834,1719581539435,-642.07,0.00022191,3]
[330577835,1719581539446,-1519.66,0.00022191,3]
[330577836,1719581539456,-914.28,0.00022191,3]
[330577837,1719581539466,-1264.93,0.00022191,3]
[330577838,1719581539477,-1929.5,0.00022191,3]
[330577839,1719581539487,-1030.03,0.00022191,3]
[330577840,1719581539497,-2178.19,0.00022191,3]
[330577841,1719581539506,-2983.21,0.00022191,3]
[330577842,1719581539519,-5319.8,0.00022191,3]
[330577843,1719581539530,-500.0,0.00022191,3]
[330577844,1719581539539,-500.0,0.00022191,3]
[330577845,1719581539549,-4628.83,0.00022191,3]
[330577846,1719581539558,-500.0,0.00022191,3]
[330577847,1719581539568,-500.0,0.00022191,3]
[330577848,1719581539578,-93892.23,0.00022191,3]
[330577849,1719581539587,-4310.82,0.00022191,3]
[330577850,1719581539599,-500.0,0.00022191,3]
[330577851,1719581539607,-566.22,0.00022191,3]
[330577852,1719581539617,-251.11,0.00022191,7]
[330577853,1719581539626,-500.0,0.00022191,3]
[330577854,1719581539635,-1460.26,0.00022191,3]
[330577855,1719581539645,-1849.37,0.00022191,3]
[330577856,1719581539654,-500.0,0.00022191,3]
[330577857,1719581539663,-500.0,0.00022191,2]
[330577858,1719581539673,-16414.95,0.00022191,3]
[330577859,1719581539682,-2405.17,0.00022191,3]
[330577860,1719581539692,-583.96,0.00022191,3]
[330577861,1719581539701,-500.0,0.00022191,3]
[330577862,1719581539711,-548.58843615,0.00022191,3]
[330577863,1719581539721,-1544.52,0.00022191,3]
[330577864,1719581539731,-500.0,0.00022191,3]
[330577865,1719581539740,-500.0,0.00022191,3]
[330577866,1719581539749,-1841.1,0.00022191,3]
[330577867,1719581539759,-500.0,0.00022191,3]
[330577868,1719581539768,-808.69,0.00022191,3]
[330577869,1719581539778,-500.0,0.00022191,3]
[330577870,1719581539788,-559.42,0.00022191,3]
[330577871,1719581539797,-785.91,0.00022191,3]
[330577872,1719581539807,-538.09,0.00022191,3]
[330577873,1719581539817,-500.0,0.00022191,3]
[330577874,1719581539826,-3690.59,0.00022191,3]
[330577875,1719581539836,-4945.54,0.00022191,3]
[330577876,1719581539847,-500.0,0.00022191,3]
[330577877,1719581539857,-500.0,0.00022191,3]
[330577878,1719581539867,-500.0,0.00022191,3]
[330577879,1719581539877,-898.52,0.00022191,3]
[330577880,1719581539886,-2669.76975911,0.00022191,3]
[330577881,1719581541267,-447.83303733,0.00022191,3]
[330577882,1719581541279,-627.83,0.00022191,3]
[330577883,1719581541290,-500.0,0.00022191,3]
[330577884,1719581541946,-662.74,0.00018835,2]
[330577885,1719581541958,-795.61370028,0.00018835,2]
[330577886,1719581542002,-1370.09904458,0.00018835,2]
[330577887,1719581542013,-2491.27644101,0.00019069,2]
[330577888,1719581542023,-1054.51068328,0.00019177,2]
[330577889,1719581542032,-155.0,0.0001935,2]
[330577890,1719581542041,-173.76628846,0.00019354,2]
[330577891,1719581542050,-578.822909,0.00021598,2]
[330577892,1719581542060,-151.0,0.00021917,2]
[330577893,1719581542070,-641.04,0.00021917,3]
[330577894,1719581542079,-155.274833,0.00021917,2]
[330577895,1719581542090,-1671.12,0.00021917,3]
[330577896,1719581542101,-505.97,0.00021917,3]
[330577897,1719581542112,-227.26876974,0.00021952,2]
[330577898,1719581542122,-3257.56,0.00021972,3]
[330577899,1719581542132,-641.04,0.00021972,3]
[330577900,1719581542143,-1671.12,0.00021972,3]
[330577901,1719581542154,-505.97,0.00021972,3]
[330577902,1719581542163,-365.52714413,0.00021993,2]
[330577903,1719581542173,-11373.93,0.00022027,3]
[330577904,1719581542184,-641.04,0.00022027,3]
[330577905,1719581542194,-1671.12,0.00022027,3]
[330577906,1719581542204,-3257.56,0.00022027,3]
[330577907,1719581542214,-505.97,0.00022027,3]
[330577908,1719581542224,-418.02,0.00022082,3]
[330577909,1719581542233,-641.04,0.00022082,3]
[330577910,1719581542243,-1671.12,0.00022082,3]
[330577911,1719581542252,-11373.93,0.00022082,3]
[330577912,1719581542261,-3257.56,0.00022082,3]
[330577913,1719581542270,-505.97,0.00022082,3]
[330577914,1719581542279,-641.04,0.00022136,3]
[330577915,1719581542289,-11373.93,0.00022136,3]
[330577916,1719581542300,-1671.12,0.00022136,3]
[330577917,1719581542311,-505.97,0.00022136,3]
[330577918,1719581542320,-781.93720356,0.00022191,3]
[330577919,1719581542329,-1763.07,0.00022191,3]
[330577920,1719581542339,-1768.49,0.00022191,3]
[330577921,1719581542349,-1375.73,0.00022191,3]
[330577922,1719581542359,-500.0,0.00022191,3]
[330577923,1719581542368,-1778.25,0.00022191,3]
[330577924,1719581542377,-1517.24,0.00022191,3]
[330577925,1719581542386,-1434.18,0.00022191,3]
[330577926,1719581542396,-500.0,0.00022191,3]
[330577927,1719581542405,-1515.04,0.00022191,3]
[330577928,1719581542414,-3187.95,0.00022191,3]
[330577929,1719581542424,-7466.19,0.00022191,3]
[330577930,1719581542442,-500.0,0.00022191,3]
[330577931,1719581542456,-2177.82,0.00022191,3]
[330577932,1719581542466,-4561.78,0.00022191,3]
[330577933,1719581542475,-3661.99,0.00022191,3]
[330577934,1719581542485,-3137.19,0.00022191,3]
[330577935,1719581542494,-4498.55,0.00022191,3]
[330577936,1719581542503,-500.0,0.00022191,3]
[330577937,1719581542512,-500.0,0.00022191,3]
[330577938,1719581542522,-1040.61,0.00022191,3]
[330577939,1719581542531,-500.0,0.00022191,3]
[330577940,1719581542540,-940.25,0.00022191,3]
[330577941,1719581542550,-4233.18,0.00022191,3]
[330577942,1719581542559,-1668.83,0.00022191,3]
[330577943,1719581542570,-3429.88,0.00022191,3]
[330577944,1719581542579,-14158.63,0.00022191,3]
[330577945,1719581542588,-500.0,0.00022191,3]
[330577946,1719581542601,-500.0,0.00022191,3]
[330577947,1719581542611,-821.69,0.00022191,3]
[330577948,1719581542621,-500.0,0.00022191,3]
[330577949,1719581542630,-783.72,0.00022191,3]
[330577950,1719581542639,-740.83,0.00022191,3]
[330577951,1719581542648,-500.0,0.00022191,3]
[330577952,1719581542657,-565.45,0.00022191,3]
[330577953,1719581542666,-550.44,0.00022191,3]
[330577954,1719581542675,-500.0,0.00022191,3]
[330577955,1719581542685,-3011.43,0.00022191,3]
[330577956,1719581542695,-1631.5,0.00022191,3]
[330577957,1719581542705,-1656.5,0.00022191,3]
[330577958,1719581542715,-500.0,0.00022191,3]
[330577959,1719581542725,-500.0,0.00022191,3]
[330577960,1719581542736,-1552.89,0.00022191,3]
[330577961,1719581542745,-500.0,0.00022191,3]
[330577962,1719581542754,-4506.2,0.00022191,3]
[330577963,1719581542764,-500.0,0.00022191,3]
[330577964,1719581542774,-976.34,0.00022191,3]
[330577965,1719581542785,-946.94,0.00022191,3]
[330577966,1719581542795,-500.0,0.00022191,3]
[330577967,1719581542805,-2381.26,0.00022191,3]
[330577968,1719581542814,-500.0,0.00022191,3]
[330577969,1719581542823,-2746.28,0.00022191,3]
[330577970,1719581542832,-3301.29,0.00022191,3]
[330577971,1719581542842,-1223.71,0.00022191,3]
[330577972,1719581542854,-628.73,0.00022191,3]
[330577973,1719581542863,-1745.26,0.00022191,3]
[330577974,1719581542872,-500.0,0.00022191,3]
[330577975,1719581542882,-1350.21,0.00022191,3]
[330577976,1719581542891,-2747.84,0.00022191,3]
[330577977,1719581542900,-641.43,0.00022191,3]
[330577978,1719581542910,-815.04,0.00022191,3]
[330577979,1719581542919,-1038.84,0.00022191,3]
[330577980,1719581542929,-500.0,0.00022191,3]
[330577981,1719581542938,-712.23,0.00022191,3]
[330577982,1719581542947,-3467.53,0.00022191,3]
[330577983,1719581542957,-936.42,0.00022191,3]
[330577984,1719581542966,-500.0,0.00022191,3]
[330577985,1719581542976,-1982.67,0.00022191,3]
[330577986,1719581542985,-5306.68,0.00022191,3]
[330577987,1719581542994,-1056.31,0.00022191,3]
[330577988,1719581543003,-3242.56,0.00022191,3]
[330577989,1719581543012,-500.0,0.00022191,3]
[330577990,1719581543022,-1048.43,0.00022191,3]
[330577991,1719581543031,-1418.66,0.00022191,3]
[330577992,1719581543040,-4937.8,0.00022191,3]
[330577993,1719581543049,-1396.36,0.00022191,3]
[330577994,1719581543058,-2756.0,0.00022191,3]
[330577995,1719581543067,-3657.11,0.00022191,3]
[330577996,1719581543076,-500.0,0.00022191,3]
[330577997,1719581543085,-3297.67,0.00022191,3]
[330577998,1719581543097,-3075.42,0.00022191,3]
[330577999,1719581543106,-500.0,0.00022191,3]
[330578000,1719581543116,-500.0,0.00022191,3]
[330578001,1719581543126,-3594.55,0.00022191,3]
[330578002,1719581543135,-1299.94,0.00022191,3]
[330578003,1719581543145,-500.0,0.00022191,3]
[330578004,1719581543154,-500.0,0.00022191,3]
[330578005,1719581543163,-500.0,0.00022191,3]
[330578006,1719581543172,-500.0,0.00022191,3]
[330578007,1719581543182,-5118.96,0.00022191,3]
[330578008,1719581543191,-1201.82,0.00022191,3]
[330578009,1719581543200,-1421.31,0.00022191,3]
[330578010,1719581543209,-1542.67,0.00022191,3]
[330578011,1719581543218,-1294.19,0.00022191,3]
[330578012,1719581543228,-500.0,0.00022191,3]
[330578013,1719581543237,-4444.52,0.00022191,3]
[330578014,1719581543247,-1711.2,0.00022191,3]
[330578015,1719581543257,-1259.38,0.00022191,3]
[330578016,1719581543266,-500.0,0.00022191,3]
[330578017,1719581543275,-500.0,0.00022191,3]
[330578018,1719581543285,-1414.84,0.00022191,3]
[330578019,1719581543294,-500.0,0.00022191,3]
[330578020,1719581543303,-500.0,0.00022191,3]
[330578021,1719581543312,-3033.69,0.00022191,3]
[330578022,1719581543321,-1220.0,0.00022191,3]
[330578023,1719581543330,-585.45,0.00022191,3]
[330578024,1719581543339,-968.19,0.00022191,3]
[330578025,1719581543350,-500.0,0.00022191,3]
[330578026,1719581543359,-5413.23,0.00022191,3]
[330578027,1719581543369,-500.0,0.00022191,3]
[330578028,1719581543378,-3606.57,0.00022191,3]
[330578029,1719581543387,-500.0,0.00022191,3]
[330578030,1719581543397,-641.04,0.00022191,3]
[330578031,1719581543406,-1671.12,0.00022191,3]
[330578032,1719581543415,-155.0,0.00022199,2]
[330578033,1719581543424,-1485.33680268,0.00022201,2]
[330578034,1719581543438,-7634.81152925,0.00022201,2]
[330578035,1719581543447,-327.02420312,0.00022211,2]
[330578036,1719581543456,-600.0,0.00022218,2]
[330578037,1719581543465,-470.46,0.0002224,2]
[330578038,1719581543475,-500.0,0.00022246,3]
[330578039,1719581543484,-500.0,0.00022246,3]
[330578040,1719581543493,-500.0,0.00022246,3]
[330578041,1719581543502,-548.61,0.00022246,3]
[330578042,1719581543514,-783.65,0.00022246,3]
[330578043,1719581543523,-500.0,0.00022246,3]
[330578044,1719581543533,-850.9,0.00022246,3]
[330578045,1719581543542,-514.0,0.00022246,3]
[330578046,1719581543553,-500.0,0.00022246,3]
[330578047,1719581543562,-699.06,0.00022246,3]
[330578048,1719581543571,-1048.4,0.00022246,3]
[330578049,1719581543581,-1001.0,0.00022246,3]
[330578050,1719581543590,-1000.42,0.00022246,3]
[330578051,1719581543602,-891.89,0.00022246,3]
[330578052,1719581543611,-681.81,0.00022246,3]
[330578053,1719581543620,-500.0,0.00022246,3]
[330578054,1719581543630,-966.81,0.00022246,3]
[330578055,1719581543639,-500.0,0.00022246,3]
[330578056,1719581543648,-525.77,0.00022246,3]
[330578057,1719581543657,-500.0,0.00022246,3]
[330578058,1719581543667,-1387.96,0.00022246,3]
[330578059,1719581543676,-500.0,0.00022246,3]
[330578060,1719581543685,-294.01492852,0.00022246,3]
[330578061,1719581543695,-666.31,0.00022246,3]
[330578062,1719581543704,-500.0,0.00022246,3]
[330578063,1719581543713,-1442.81,0.00022246,3]
[330578064,1719581543722,-1243.8,0.00022246,3]
[330578065,1719581543732,-682.07,0.00022246,3]
[330578066,1719581543742,-520.71,0.00022246,3]
[330578067,1719581543751,-1362.6,0.00022246,3]
[330578068,1719581543762,-500.0,0.00022246,3]
[330578069,1719581543771,-500.0,0.00022246,3]
[330578070,1719581543780,-1234.87,0.00022246,3]
[330578071,1719581543790,-618.93875623,0.00022246,3]
[330578072,1719581543814,-1123.19,0.00022246,3]
[330578073,1719581543823,-500.0,0.00022246,3]
[330578074,1719581543832,-500.0,0.00022246,3]
[330578075,1719581543841,-565.31,0.00022246,3]
[330578076,1719581543852,-594.55,0.00022246,3]
[330578077,1719581543861,-500.0,0.00022246,3]
[330578078,1719581543870,-643.77,0.00022246,3]
[330578079,1719581543880,-731.52,0.00022246,3]
[330578080,1719581543889,-1699.71,0.00022246,3]
[330578081,1719581543898,-500.0,0.00022246,3]
[330578082,1719581543907,-1373.99,0.00022246,3]
[330578083,1719581543916,-522.88812871,0.00022246,3]
[330578084,1719581543925,-723.52,0.00022246,3]
[330578085,1719581543934,-875.02,0.00022246,3]
[330578086,1719581543943,-558.04,0.00022246,3]
[330578087,1719581543952,-772.68,0.00022246,3]
[330578088,1719581543961,-500.0,0.00022246,3]
[330578089,1719581543970,-1704.22,0.00022246,3]
[330578090,1719581543979,-500.0,0.00022246,3]
[330578091,1719581543988,-500.0,0.00022246,3]
[330578092,1719581543998,-500.0,0.00022246,3]
[330578093,1719581544007,-971.16,0.00022246,3]
[330578094,1719581544016,-500.0,0.00022246,3]
[330578095,1719581544025,-1145.01,0.00022246,3]
[330578096,1719581544034,-500.0,0.00022246,3]
[330578097,1719581544043,-500.0,0.00022246,3]
[330578098,1719581544052,-500.0,0.00022246,3]
[330578099,1719581544061,-500.0,0.00022246,3]
[330578100,1719581544071,-500.0,0.00022246,3]
[330578101,1719581544080,-750.08,0.00022246,3]
[330578102,1719581544089,-639.6,0.00022246,3]
[330578103,1719581544100,-500.0,0.00022246,3]
[330578104,1719581544109,-748.25,0.00022246,3]
[330578105,1719581544117,-618.0,0.00022246,3]
[330578106,1719581544127,-905.23,0.00022246,3]
[330578107,1719581544136,-515.0,0.00022246,3]
[330578108,1719581544146,-666.21,0.00022246,3]
[330578109,1719581544155,-1407.05,0.00022246,3]
[330578110,1719581544167,-500.0,0.00022246,3]
[330578111,1719581544177,-343.77697234,0.00022246,3]
[330578112,1719581544186,-500.0,0.00022246,3]
[330578113,1719581544195,-769.12,0.00022246,3]
[330578114,1719581544204,-500.0,0.00022246,3]
[330578115,1719581544214,-674.3,0.00022246,3]
[330578116,1719581544223,-715.06,0.00022246,3]
[330578117,1719581544232,-500.0,0.00022246,3]
[330578118,1719581544241,-1278.46,0.00022246,3]
[330578119,1719581544250,-500.0,0.00022246,3]
[330578120,1719581544259,-980.12,0.00022246,3]
[330578121,1719581544269,-500.0,0.00022246,3]
[330578122,1719581544279,-1184.68,0.00022246,3]
[330578123,1719581544288,-500.0,0.00022246,3]
[330578124,1719581544298,-843.12,0.00022246,3]
[330578125,1719581544307,-1239.44,0.00022246,3]
[330578126,1719581544316,-1206.36,0.00022246,3]
[330578127,1719581544325,-1609.18,0.00022246,3]
[330578128,1719581544335,-500.0,0.00022246,3]
[330578129,1719581544344,-500.0,0.00022246,3]
[330578130,1719581544354,-2934.42,0.00022246,3]
[330578131,1719581544364,-1088.64,0.00022246,3]
[330578132,1719581544373,-500.0,0.00022246,3]
[330578133,1719581544382,-500.0,0.00022246,3]
[330578134,1719581544392,-500.0,0.00022246,3]
[330578135,1719581544401,-500.0,0.00022246,3]
[330578136,1719581544410,-500.0,0.00022246,3]
[330578137,1719581544420,-500.0,0.00022246,3]
[330578138,1719581544430,-500.0,0.00022246,3]
[330578139,1719581544444,-1148.41,0.00022246,3]
[330578140,1719581544453,-500.0,0.00022246,3]
[330578141,1719581544462,-500.0,0.00022246,3]
[330578142,1719581544471,-921.29,0.00022246,3]
[330578143,1719581544483,-1294.54,0.00022246,3]
[330578144,1719581544492,-500.0,0.00022246,3]
[330578145,1719581544501,-1623.02,0.00022246,3]
[330578146,1719581544510,-556.63,0.00022246,3]
[330578147,1719581544522,-500.0,0.00022246,3]
[330578148,1719581544532,-500.0,0.00022246,3]
[330578149,1719581544541,-702.96,0.00022246,3]
[330578150,1719581544551,-921.0,0.00022246,3]
[330578151,1719581544560,-500.0,0.00022246,3]
[330578152,1719581544570,-786.23,0.00022246,3]
[330578153,1719581544579,-1040.32,0.00022246,3]
[330578154,1719581544588,-517.36,0.00022246,3]
[330578155,1719581544599,-1890.61,0.00022246,3]
[330578156,1719581544608,-500.0,0.00022246,3]
[330578157,1719581544617,-4299.14,0.00022246,3]
[330578158,1719581544629,-500.0,0.00022246,3]
[330578159,1719581544639,-500.0,0.00022246,3]
[330578160,1719581544648,-500.0,0.00022246,3]
[330578161,1719581544657,-500.0,0.00022246,3]
[330578162,1719581544666,-500.0,0.00022246,3]
[330578163,1719581544840,-759.06,0.00022246,3]
[330578164,1719581544852,-500.0,0.00022246,3]
[330578165,1719581544861,-1746.61,0.00022246,3]
[330578166,1719581544870,-500.0,0.00022246,3]
[330578167,1719581544879,-500.0,0.00022246,3]
[330578168,1719581544888,-500.0,0.00022246,3]
[330578169,1719581544897,-676.81,0.00022246,3]
[330578170,1719581544907,-951.7,0.00022246,3]
[330578171,1719581544916,-500.0,0.00022246,3]
[330578172,1719581544925,-500.0,0.00022246,3]
[330578173,1719581544934,-628.11765935,0.00022246,3]
[330578174,1719581544943,-500.0,0.00022246,3]
[330578175,1719581544952,-500.0,0.00022246,3]
[330578176,1719581544962,-1193.49,0.00022246,3]
[330578177,1719581544972,-1219.38,0.00022246,3]
[330578178,1719581544981,-500.0,0.00022246,3]
[330578179,1719581544990,-500.0,0.00022246,3]
[330578180,1719581544999,-500.0,0.00022246,3]
[330578181,1719581545008,-1006.35,0.00022246,3]
[330578182,1719581545017,-630.5,0.00022246,3]
[330578183,1719581545027,-1286.65,0.00022246,3]
[330578184,1719581545036,-967.13,0.00022246,3]
[330578185,1719581545046,-609.79,0.00022246,3]
[330578186,1719581545055,-500.0,0.00022246,3]
[330578187,1719581545064,-894.63,0.00022246,3]
[330578188,1719581545074,-500.0,0.00022246,3]
[330578189,1719581545083,-12161.34,0.00022246,3]
[330578190,1719581545093,-500.0,0.00022246,3]
[330578191,1719581545109,-1109.45,0.00022246,3]
[330578192,1719581545119,-500.0,0.00022246,3]
[330578193,1719581545128,-1021.69,0.00022246,3]
[330578194,1719581545138,-1886.28,0.00022246,3]